bitfinex/quotes_BTCUSD_20250224
["timestamp","ask_amount","ask_price","bid_price","bid_amount"]
[1740408876976,0.09227472,95008.0,95007.0,0.10264569]
[1740408877221,0.09227472,95008.0,95007.0,0.2488967]
[1740408877828,0.00043413,95019.0,95007.0,0.2378567]
[1740408878105,0.00043413,95019.0,95008.0,0.06416567]
[1740408878360,0.00960511,95018.0,95007.0,0.13521101]
[1740408878575,0.00043413,95019.0,95008.0,0.12007203]
[1740408878788,0.00043413,95019.0,95007.0,0.15686941]
[1740408879005,0.00043413,95019.0,95008.0,0.06486677]
[1740408879431,0.00043413,95019.0,95008.0,0.2018342]
[1740408880069,0.00043413,95019.0,95009.0,0.3214]
[1740408880501,0.00043413,95019.0,95009.0,0.44015567]
[1740408880714,0.00954973,95018.0,95009.0,0.11875567]
[1740408881166,0.210488,95017.0,95000.0,1.49873419]
[1740408881384,0.15,95013.0,95000.0,1.45539251]
[1740408881594,0.157878,95010.0,95000.0,1.56702802]
[1740408881815,0.01004824,95009.0,95000.0,1.56702802]
[1740408882262,0.157893,95001.0,95000.0,1.56702802]
[1740408882482,0.16819053,95001.0,95000.0,1.56702802]
[1740408882692,0.31819053,95001.0,95000.0,1.56702802]
[1740408885889,0.16029753,95001.0,95000.0,1.56702802]
[1740408886275,0.01666667,95015.0,95000.0,1.56702802]
[1740408886490,0.00990977,95014.0,95001.0,0.0014734]
[1740408886696,0.01666667,95015.0,95001.0,0.0014734]
[1740408886907,0.01666667,95015.0,95002.0,0.10264569]
[1740408887112,0.01666667,95015.0,95014.0,0.157871]
[1740408887322,0.01666667,95015.0,95014.0,0.30223673]
[1740408887523,0.01666667,95015.0,95014.0,0.27505754]
[1740408888090,0.0124728,95015.0,95014.0,0.41942327]
[1740408888324,0.0124728,95015.0,95014.0,0.4864159]
[1740408888738,0.01270318,95064.0,95018.0,0.177864]
[1740408888956,0.0471,95082.0,95018.0,1.16245054]
[1740408889165,0.157775,95072.0,95018.0,1.26509623]
[1740408889339,0.0130453,95070.0,95018.0,1.45776518]
[1740408889755,0.0130453,95070.0,95044.0,0.157821]
[1740408889970,0.0130453,95070.0,95045.0,0.01247252]
[1740408890185,0.157765,95079.0,95045.0,0.168819]
[1740408890336,0.2366,95089.0,95046.0,0.10955405]
[1740408890545,0.0017008,95096.0,95047.0,0.10264569]
[1740408890770,0.157753,95085.0,95048.0,0.00147233]
[1740408890929,0.157753,95085.0,95051.0,0.157809]
[1740408891162,0.157755,95084.0,95052.0,0.01243235]
[1740408891617,0.157756,95083.0,95052.0,0.00147235]
[1740408891842,0.157756,95083.0,95042.0,0.210431]
[1740408891843,0.157893,95001.0,95000.0,1.45539251]
[1740408892200,0.2,95013.0,95000.0,1.65883979]
[1740408892560,0.0471,95023.0,95000.0,1.65883979]
[1740408892561,0.210479,95021.0,95000.0,1.65883979]
[1740408892723,0.0471,95023.0,95000.0,1.65883979]
[1740408892929,0.0471,95023.0,95001.0,0.00073894]
[1740408892930,0.15,95013.0,95001.0,0.00073894]
[1740408893182,0.157876,95012.0,95000.0,1.65883979]
[1740408893313,0.15,95011.0,95000.0,1.65883979]
[1740408894090,0.0471,95023.0,95000.0,1.65883979]
[1740408894091,0.31791355,95001.0,95000.0,1.65883979]
[1740408896408,0.15992055,95001.0,95000.0,1.65883979]
[1740408896607,0.31781355,95001.0,95000.0,1.65883979]
[1740408897467,0.15992055,95001.0,95000.0,1.65883979]
[1740408897658,0.01002055,95001.0,95000.0,1.65883979]
[1740408898003,0.0454,95040.0,95000.0,1.65883979]
[1740408898216,0.0454,95040.0,95000.0,1.65887979]
[1740408898217,0.08387459,95027.0,95000.0,1.65887979]
[1740408898426,0.00957743,95019.0,95000.0,1.65887979]
[1740408898908,0.00957743,95019.0,95001.0,0.00073883]
[1740408899118,0.003,95004.0,95002.0,0.10264569]
[1740408899444,0.003,95004.0,95003.0,0.00073851]
[1740408899649,0.003,95004.0,95003.0,0.3214]
[1740408899861,0.003,95004.0,95003.0,0.54899064]
[1740408901543,0.003,95004.0,95003.0,0.66617718]
[1740408901868,0.003,95004.0,95003.0,0.76882287]
[1740408902071,0.003,95004.0,95003.0,0.65163633]
[1740408902741,0.003,95004.0,95003.0,0.54899064]
[1740408903791,0.003,95004.0,95003.0,0.22759064]
[1740408904024,0.003,95004.0,95000.0,1.50337512]
[1740408904230,0.003,95004.0,95003.0,0.20251314]
[1740408904450,0.01313134,95004.0,95000.0,1.45586664]
[1740408904653,0.16810443,95003.0,95000.0,1.45586664]
[1740408904854,0.01021443,95003.0,95000.0,1.65191206]
[1740408905034,0.003,95004.0,95001.0,0.03186787]
[1740408905272,0.003,95004.0,95001.0,0.16360628]
[1740408905605,0.003,95004.0,95001.0,0.13173841]
[1740408905807,0.003,95004.0,95000.0,1.45586664]
[1740408906025,0.003,95004.0,95000.0,1.52305248]
[1740408906917,0.003,95004.0,95001.0,0.00073867]
[1740408907353,0.003,95004.0,95000.0,1.52305248]
[1740408907657,0.003,95004.0,95001.0,0.10264569]
[1740408907866,0.003,95004.0,95001.0,0.25450264]
[1740408908703,0.003,95004.0,95001.0,0.14053695]
[1740408908918,0.01018673,95003.0,95001.0,0.14053695]
[1740408909132,0.307893,95001.0,95000.0,1.51692001]
[1740408909337,0.31819053,95001.0,95000.0,1.45586664]
[1740408909549,0.16029753,95001.0,95000.0,1.60851988]
[1740408909964,0.01029753,95001.0,95000.0,1.60851988]
[1740408910220,0.003,95004.0,95000.0,1.60851988]
[1740408910400,0.01021443,95003.0,95000.0,1.60851988]
[1740408911174,0.003,95004.0,95001.0,0.10338458]
[1740408911588,0.003,95004.0,95001.0,0.26777129]
[1740408911797,0.003,95004.0,95001.0,0.2670324]
[1740408912013,0.003,95004.0,95002.0,0.0007387]
[1740408912213,0.003,95004.0,95003.0,0.10264569]
[1740408912410,0.003,95004.0,95003.0,0.29662735]
[1740408912813,0.003,95004.0,95003.0,0.37792735]
[1740408913217,0.003,95004.0,95003.0,0.69932735]
[1740408913847,0.004699,95004.0,95003.0,0.85721635]
[1740408914403,0.004699,95004.0,95003.0,0.95986204]
[1740408914613,0.004699,95004.0,95003.0,0.97440289]
[1740408914822,0.004699,95004.0,95003.0,0.98576289]
[1740408915243,0.004699,95004.0,95003.0,0.82787389]
[1740408915451,0.004699,95004.0,95003.0,0.51538166]
[1740408916082,0.01483034,95004.0,95003.0,0.19398166]
[1740408916556,0.01479034,95004.0,95001.0,0.07855636]
[1740408916772,0.01018673,95003.0,95001.0,0.07855636]
[1740408917382,0.01008673,95003.0,95001.0,0.07855636]
[1740408918060,0.307891,95002.0,95001.0,0.07855636]
[1740408918273,0.31803314,95002.0,95001.0,0.07855636]
[1740408918508,0.16014214,95002.0,95001.0,0.07855636]
[1740408919139,0.15,95002.0,95001.0,0.07855636]
[1740408919571,0.004659,95004.0,95001.0,0.07855636]
[1740408919782,0.004659,95004.0,95002.0,0.10264569]
[1740408920202,0.004659,95004.0,95002.0,0.26006792]
[1740408920512,0.004659,95004.0,95002.0,0.15742223]
[1740408920903,0.15,95002.0,95001.0,0.10955645]
[1740408921089,0.16014214,95002.0,95001.0,0.0008495]
[1740408921384,0.004659,95004.0,95001.0,0.10955645]
[1740408922801,0.01008674,95003.0,95001.0,0.10955645]
[1740408923023,0.15,95002.0,95001.0,0.10955645]
[1740408923220,0.31800543,95002.0,95001.0,0.10955645]
[1740408931838,0.16011443,95002.0,95001.0,0.10955645]
[1740408932056,0.004659,95004.0,95001.0,0.11029539]
[1740408932291,0.004659,95004.0,95001.0,0.10955645]
[1740408932516,0.004659,95004.0,95002.0,0.10264569]
[1740408932925,0.004659,95004.0,95002.0,0.10338415]
[1740408933132,0.004659,95004.0,95002.0,0.19638823]
[1740408933336,0.004659,95004.0,95003.0,0.09011757]
[1740408933562,0.004659,95004.0,95002.0,0.16388234]
[1740408933769,0.004659,95004.0,95003.0,0.10264569]
[1740408933977,0.004659,95004.0,95001.0,0.08434121]
[1740408934198,0.157891,95002.0,95001.0,0.0008495]
[1740408934412,0.31803314,95002.0,95001.0,0.18748549]
[1740408935263,0.31753314,95002.0,95001.0,0.18748549]
[1740408937198,0.31803314,95002.0,95001.0,0.18748549]
[1740408941113,0.31803314,95002.0,95000.0,0.89535213]
[1740408941114,0.307893,95001.0,95000.0,0.89535213]
[1740408941326,0.31806283,95001.0,95000.0,0.89535213]
[1740408941532,0.31806283,95001.0,95000.0,0.92886927]
[1740408943249,0.16016983,95001.0,95000.0,0.92886927]
[1740408943495,0.01016983,95001.0,95000.0,0.92886927]
[1740408943741,0.16806283,95001.0,95000.0,0.92886927]
[1740408944687,0.01016983,95001.0,95000.0,0.92886927]
[1740408945174,0.16806283,95001.0,95000.0,0.92886927]
[1740408951602,0.64396283,95001.0,95000.0,0.92886927]
[1740408951802,0.72626283,95001.0,95000.0,0.92886927]
[1740408952016,0.72626283,95001.0,95000.0,0.87289794]
[1740408953015,0.72626283,95001.0,95000.0,0.81919794]
[1740408953222,0.307926,94981.0,94966.0,0.0008508]
[1740408953425,0.31923179,94981.0,94980.0,0.32763141]
[1740408953634,0.31923179,94981.0,94980.0,5.5e-07]
[1740408953870,0.307949,94967.0,94966.0,0.13482479]
[1740408954074,0.32003086,94967.0,94966.0,0.13482479]
[1740408955148,0.32046472,94967.0,94966.0,0.13482479]
[1740408955351,0.16251572,94967.0,94966.0,0.13482479]
[1740408955552,0.16251572,94967.0,94966.0,0.05566739]
[1740408955905,0.15,94966.0,94964.0,0.13290556]
[1740408956111,0.01251572,94967.0,94966.0,0.08890989]
[1740408956322,0.00043386,94967.0,94965.0,0.0776]
[1740408956590,0.00043386,94967.0,94966.0,0.02179075]
[1740408956828,0.00043386,94967.0,94965.0,0.19191138]
[1740408957320,0.157951,94966.0,94965.0,0.19191138]
[1740408957570,0.00043386,94967.0,94965.0,0.11431138]
[1740408957782,0.01254343,94967.0,94964.0,0.08832661]
[1740408957975,0.01254343,94967.0,94965.0,0.08356643]
[1740408958178,0.01254343,94967.0,94964.0,0.08832661]
[1740408958419,0.00043386,94967.0,94965.0,0.11550774]
[1740408958636,0.00043386,94967.0,94965.0,0.00855664]
[1740408958782,0.00043386,94967.0,94965.0,0.09086192]
[1740408958979,0.00043386,94967.0,94964.0,0.09809791]
[1740408959218,0.00043386,94967.0,94964.0,0.002]
[1740408959423,0.00043386,94967.0,94964.0,0.09809791]
[1740408959751,0.157952,94965.0,94964.0,0.09809791]
[1740408959955,0.17014473,94965.0,94964.0,0.09809791]
[1740408960268,0.32014473,94965.0,94964.0,0.09809791]
[1740408961959,0.01219273,94965.0,94964.0,0.09809791]
[1740408962185,0.00043386,94967.0,94964.0,0.09809791]
[1740408962595,0.00043386,94967.0,94965.0,0.0779]
[1740408962728,0.00043386,94967.0,94965.0,0.17160069]
[1740408962940,0.00043386,94967.0,94965.0,0.18896076]
[1740408963357,0.00043386,94967.0,94966.0,0.00074003]
[1740408963567,0.00043386,94967.0,94965.0,0.17160069]
[1740408966382,0.00043386,94967.0,94966.0,0.0466]
[1740408966757,0.00043386,94967.0,94966.0,0.12694844]
[1740408968921,0.00043386,94967.0,94966.0,0.69017403]
[1740408969119,0.00043386,94967.0,94966.0,0.91000626]
[1740408969755,0.00043386,94967.0,94966.0,0.76325526]
[1740408969963,0.00043386,94967.0,94966.0,0.92120626]
[1740408972145,0.00043386,94967.0,94966.0,0.63486872]
[1740408972274,0.00043386,94967.0,94966.0,0.64602872]
[1740408973522,0.00043386,94967.0,94966.0,0.91000626]
[1740408973735,0.00043386,94967.0,94966.0,0.56211413]
[1740408974152,0.15838286,94967.0,94966.0,0.44834844]
[1740408974326,0.00043386,94967.0,94966.0,0.40174844]
[1740408974527,0.15838286,94967.0,94966.0,0.40174844]
[1740408975344,0.00043386,94967.0,94966.0,0.40174844]
[1740408975613,0.00043386,94967.0,94966.0,0.44220823]
[1740408975778,0.00213346,94967.0,94966.0,0.44220823]
[1740408976136,0.00213346,94967.0,94966.0,0.40174844]
[1740408977192,0.00209346,94967.0,94966.0,0.40174844]
[1740408980432,0.00209346,94967.0,94966.0,0.55969944]
[1740408980678,0.00209346,94967.0,94966.0,0.40174844]
[1740408980949,0.00209346,94967.0,94966.0,0.67688598]
[1740408981212,0.00209346,94967.0,94966.0,0.85493167]
[1740408981454,0.00209346,94967.0,94966.0,0.69698067]
[1740408981712,0.00209346,94967.0,94966.0,0.85493167]
[1740408982658,0.16004246,94967.0,94966.0,0.15574844]
[1740408982911,0.00209346,94967.0,94966.0,0.08034844]
[1740408983183,0.15209346,94967.0,94966.0,0.08038859]
[1740408983440,0.15209346,94967.0,94966.0,4.015e-05]
[1740408983692,0.15209346,94967.0,94966.0,0.06575488]
[1740408983943,0.15209346,94967.0,94966.0,0.07261532]
[1740408984244,0.15209346,94967.0,94966.0,0.06575488]
[1740408985252,0.00209346,94967.0,94966.0,0.06575488]
[1740408986823,0.00209346,94967.0,94966.0,0.48980057]
[1740408987308,0.00209346,94967.0,94966.0,0.49065037]
[1740408988535,0.00209346,94967.0,94966.0,0.38800468]
[1740408988773,0.00209346,94967.0,94966.0,0.4293311]
[1740408990007,0.00209346,94967.0,94966.0,0.53197679]
[1740408990275,0.00209346,94967.0,94966.0,0.70446864]
[1740408990496,0.00209346,94967.0,94966.0,0.78686864]
[1740408990735,0.0928178,94977.0,94976.0,0.157934]
[1740408991000,0.0928178,94977.0,94976.0,0.19728654]
[1740408991206,0.0928178,94977.0,94976.0,0.43933996]
[1740408991408,0.0928178,94977.0,94976.0,0.28140596]
[1740408991655,0.0928178,94977.0,94976.0,0.16421942]
[1740408991933,0.0928178,94977.0,94976.0,0.10172536]
[1740408992117,0.0928178,94977.0,94976.0,0.08411942]
[1740408992343,0.0928178,94977.0,94967.0,0.17640972]
[1740408992494,0.0928178,94977.0,94967.0,0.03986]
[1740408992754,0.0928178,94977.0,94968.0,0.11792642]
[1740408992956,0.0928178,94977.0,94971.0,0.157942]
[1740408993300,0.0928178,94977.0,94973.0,0.17247885]
[1740408993475,0.0928178,94977.0,94975.0,0.01454085]
[1740408993751,0.0928178,94977.0,94976.0,0.33755014]
[1740408994014,0.0928178,94977.0,94976.0,0.57650492]
[1740408994522,0.0928178,94977.0,94976.0,0.45931838]
[1740408994717,0.001699,95001.0,94976.0,0.56196407]
[1740408994901,0.157896,94999.0,94977.0,0.10338472]
[1740408995151,0.001699,95001.0,94978.0,0.10264569]
[1740408995351,0.157897,94999.0,94979.0,0.10264569]
[1740408995463,0.210526,95000.0,94979.0,0.10264569]
[1740408995667,0.157899,94997.0,94979.0,0.10264569]
[1740408995873,0.210526,95000.0,94979.0,0.21199486]
[1740408996076,0.157904,94995.0,94980.0,0.10264569]
[1740408996275,0.157898,94998.0,94980.0,0.29994293]
[1740408996485,0.001699,95001.0,94980.0,0.29994293]
[1740408996750,0.001699,95001.0,94981.0,0.00073905]
[1740408997189,0.001699,95001.0,94982.0,0.10264569]
[1740408997395,0.001699,95001.0,95000.0,0.157894]
[1740408997604,0.001699,95001.0,95000.0,0.70983969]
[1740408997808,0.001699,95001.0,95000.0,1.22718097]
[1740408998075,0.001699,95001.0,95000.0,0.64664012]
[1740408998323,0.159592,95001.0,95000.0,0.41609443]
[1740408998545,0.159592,95001.0,95000.0,0.09469443]
[1740408998755,0.31978954,95001.0,95000.0,0.0948247]
[1740408998986,0.35316321,95001.0,95000.0,0.00013027]
[1740408999193,0.31978954,95001.0,95000.0,0.00013027]
[1740409002536,0.151699,95001.0,95000.0,0.00013027]
[1740409002857,0.309592,95001.0,95000.0,0.07779211]
[1740409003339,0.309592,95001.0,95000.0,0.08557132]
[1740409004043,0.151699,95001.0,95000.0,0.08557132]
[1740409004275,0.001699,95001.0,95000.0,0.08557132]
[1740409005721,0.001699,95001.0,95000.0,0.18821701]
[1740409005931,0.001699,95001.0,95000.0,0.08557132]
[1740409009185,0.159592,95001.0,95000.0,0.08557132]
[1740409009410,0.001699,95001.0,95000.0,0.08557132]
[1740409009557,0.159592,95001.0,95000.0,0.08557132]
[1740409009764,0.001699,95001.0,95000.0,0.08257132]
[1740409010166,0.159592,95001.0,95000.0,0.07479211]
[1740409010372,0.31978954,95001.0,94986.0,0.03086995]
[1740409010566,0.307916,94987.0,94986.0,0.00012971]
[1740409011015,0.307916,94987.0,94986.0,0.07315694]
[1740409011424,0.21049,95017.0,94986.0,0.07315694]
[1740409011669,0.09303815,95008.0,94987.0,0.00805479]
[1740409011875,0.09303815,95008.0,94987.0,0.11070048]
[1740409012085,0.09303815,95008.0,94988.0,0.3979]
[1740409012292,0.09303815,95008.0,94989.0,0.10264569]
[1740409012709,0.09303815,95008.0,94989.0,0.16080596]
[1740409012967,0.09303815,95008.0,94990.0,0.06135514]
[1740409013174,0.157902,94996.0,94990.0,0.06135514]
[1740409013591,0.159592,95001.0,94990.0,0.06135514]
[1740409013801,0.001699,95001.0,94990.0,0.06135514]
[1740409014005,0.001699,95001.0,94991.0,0.10264569]
[1740409014214,0.001699,95001.0,94992.0,0.05045662]
[1740409014415,0.001699,95001.0,94993.0,0.10264569]
[1740409014652,0.001699,95001.0,94993.0,0.1579005]
[1740409015050,0.001699,95001.0,94993.0,0.05525481]
[1740409015203,0.157904,94994.0,94993.0,0.05525481]
[1740409015412,0.001699,95001.0,94993.0,0.04462768]
[1740409015612,0.001699,95001.0,94993.0,0.10359696]
[1740409015960,0.001699,95001.0,94993.0,0.20624265]
[1740409016167,0.157894,95000.0,94993.0,0.10359696]
[1740409016382,0.001699,95001.0,94993.0,0.10359696]
[1740409016549,0.001699,95001.0,94994.0,0.04440327]
[1740409017059,0.001699,95001.0,94995.0,0.10264569]
[1740409017421,0.001699,95001.0,94995.0,0.14511195]
[1740409018531,0.001699,95001.0,94995.0,0.04246626]
[1740409018942,0.001699,95001.0,94994.0,0.04440327]
[1740409019145,0.001699,95001.0,94995.0,0.09715316]
[1740409019446,0.001699,95001.0,94995.0,0.09515728]
[1740409019581,0.001699,95001.0,94996.0,0.00073889]
[1740409019784,0.001699,95001.0,94995.0,0.09515728]
[1740409020198,0.001699,95001.0,94996.0,0.10264569]
[1740409020404,0.001699,95001.0,94997.0,0.0209443]
[1740409021400,0.001699,95001.0,94995.0,0.04291774]
[1740409021401,0.001699,95001.0,94995.0,0.07258316]
[1740409021605,0.001699,95001.0,94996.0,0.14709498]
[1740409021810,0.001699,95001.0,94996.0,0.14291629]
[1740409022017,0.001699,95001.0,94996.0,0.14217765]
[1740409022590,0.001699,95001.0,94997.0,0.3214]
[1740409022807,0.001699,95001.0,94998.0,0.05188741]
[1740409023062,0.001699,95001.0,95000.0,0.157894]
[1740409023248,0.001699,95001.0,95000.0,0.18294569]
[1740409023464,0.001699,95001.0,95000.0,0.21584615]
[1740409023813,0.001699,95001.0,95000.0,0.11320046]
[1740409024056,0.159592,95001.0,95000.0,0.03290046]
[1740409024447,0.159592,95001.0,94998.0,0.05188741]
[1740409024651,0.159592,95001.0,95000.0,0.04631765]
[1740409024853,0.157895,95000.0,94997.0,0.35917909]
[1740409025056,0.157895,95000.0,94998.0,0.02937922]
[1740409025255,0.001699,95001.0,94997.0,0.35603611]
[1740409025458,0.001699,95001.0,94998.0,0.03468993]
[1740409025654,0.001699,95001.0,94999.0,0.03990077]
[1740409025863,0.157894,95000.0,94999.0,0.03990077]
[1740409026084,0.157894,95000.0,94999.0,0.08246734]
[1740409026637,0.157894,95000.0,94999.0,0.04256657]
[1740409026866,0.157894,95000.0,94997.0,0.032233]
[1740409026867,0.307898,94998.0,94997.0,0.032233]
[1740409027066,0.157916,94987.0,94978.0,0.3214]
[1740409027472,0.157916,94987.0,94986.0,0.03149927]
[1740409030450,0.307916,94987.0,94986.0,0.03149927]
[1740409032905,0.31888927,94987.0,94986.0,0.03149927]
[1740409033888,0.39718927,94987.0,94986.0,0.03149927]
[1740409034699,0.39718927,94987.0,94986.0,0.03234877]
[1740409035848,0.39718927,94987.0,94986.0,0.03137033]
[1740409036711,0.44468927,94987.0,94986.0,3.3e-07]
[1740409037147,0.307947,94968.0,94966.0,0.00088995]
[1740409037352,0.307972,94953.0,94947.0,4.23032428]
[1740409037481,0.355172,94953.0,94947.0,4.2]
[1740409037689,0.36803013,94953.0,94947.0,4.2]
[1740409038151,0.36803013,94953.0,94952.0,0.04543543]
[1740409038380,0.36803013,94953.0,94947.0,2.54453943]
[1740409038381,0.0819,94951.0,94947.0,2.54453943]
[1740409038581,0.32093778,94948.0,94947.0,1.32727243]
[1740409038782,0.64683778,94948.0,94947.0,1.35759834]
[1740409040571,0.64683778,94948.0,94947.0,1.08924234]
[1740409041929,0.64683778,94948.0,94942.0,3.7e-07]
[1740409041930,0.15,94944.0,94942.0,3.7e-07]
[1740409042135,0.32310673,94943.0,94942.0,3.7e-07]
[1740409042395,0.3212631,94943.0,94942.0,3.7e-07]
[1740409043272,0.3212631,94943.0,94942.0,0.0542531]
[1740409043650,0.6471631,94943.0,94942.0,0.05416287]
[1740409043869,0.307992,94941.0,94940.0,0.0444405]
[1740409044058,0.32151571,94941.0,94940.0,0.0143941]
[1740409044283,0.32151571,94941.0,94940.0,0.0444405]
[1740409046116,0.64741571,94941.0,94940.0,0.0444405]
[1740409047100,0.64741571,94941.0,94940.0,0.0452902]
[1740409047296,0.64741571,94941.0,94940.0,0.0552902]
[1740409051605,0.64741571,94941.0,94940.0,0.04877047]
[1740409051811,0.158027,94920.0,94919.0,2.01847593]
[1740409051991,0.65698643,94920.0,94919.0,2.01847593]
[1740409052173,0.80698643,94920.0,94919.0,2.01847593]
[1740409052852,0.46993322,94920.0,94919.0,2.01847593]
[1740409053042,0.46993322,94920.0,94919.0,2.07634103]
[1740409053288,0.47006317,94920.0,94919.0,2.07634103]
[1740409053497,0.47006317,94920.0,94919.0,2.02881077]
[1740409053709,0.50928145,94920.0,94919.0,2.02881077]
[1740409054140,0.50928145,94920.0,94919.0,0.84270877]
[1740409054353,0.57683356,94920.0,94919.0,0.84270877]
[1740409054569,0.55215613,94920.0,94919.0,0.84270877]
[1740409054789,0.73761528,94920.0,94919.0,0.84270877]
[1740409054998,0.74091629,94920.0,94919.0,0.84270877]
[1740409055248,0.73545714,94920.0,94919.0,0.84270877]
[1740409055498,0.75545714,94920.0,94919.0,0.84270877]
[1740409055747,0.73545714,94920.0,94919.0,0.84270877]
[1740409056005,0.75545714,94920.0,94919.0,0.84270877]
[1740409056961,1.11806158,94920.0,94919.0,7.9e-07]
[1740409057191,1.18368468,94920.0,94919.0,7.9e-07]
[1740409057410,0.528051,94906.0,94905.0,2e-08]
[1740409057621,0.5235169,94906.0,94905.0,2e-08]
[1740409058679,0.52681816,94906.0,94905.0,0.0790121]
[1740409059100,0.56135901,94906.0,94905.0,0.0740121]
[1740409059317,0.56135901,94906.0,94905.0,0.07392185]
[1740409059581,0.56135901,94906.0,94888.0,0.00030516]
[1740409059582,0.409859,94901.0,94888.0,0.00030516]
[1740409059820,0.308142,94851.0,94845.0,0.0458499]
[1740409060058,0.16852084,94851.0,94845.0,0.0008499]
[1740409060751,0.16852084,94851.0,94850.0,0.12365741]
[1740409061449,0.16865065,94851.0,94850.0,0.12365741]
[1740409061683,0.16865065,94851.0,94850.0,0.12356713]
[1740409061910,0.17195191,94851.0,94850.0,0.12356713]
[1740409062138,0.17195191,94851.0,94850.0,0.12347686]
[1740409062591,0.02195191,94851.0,94850.0,0.12347686]
[1740409062778,0.00343107,94851.0,94850.0,0.25387686]
[1740409064264,0.02195191,94851.0,94850.0,0.20467686]
[1740409064464,0.02195191,94851.0,94850.0,0.12347686]
[1740409065080,0.00012981,94851.0,94850.0,0.12347686]
[1740409065727,0.00012981,94851.0,94850.0,0.19917686]
[1740409065963,0.00012981,94851.0,94850.0,0.19992138]
[1740409066095,0.00012981,94851.0,94850.0,0.19917686]
[1740409066315,0.00012981,94851.0,94850.0,0.24792128]
[1740409066518,0.00012981,94851.0,94850.0,0.31406158]
[1740409067503,0.00012981,94851.0,94850.0,0.41670727]
[1740409067904,0.00012981,94851.0,94850.0,0.31406158]
[1740409068530,0.00012981,94851.0,94850.0,0.24717686]
[1740409068991,0.00012981,94851.0,94850.0,0.19917686]
[1740409070676,0.01865065,94851.0,94850.0,0.12347686]
[1740409071031,0.00012981,94851.0,94850.0,0.12347686]
[1740409071231,0.01865065,94851.0,94850.0,0.12347686]
[1740409071461,0.01865065,94851.0,94850.0,0.12432766]
[1740409071733,0.02035225,94851.0,94850.0,0.12432766]
[1740409072106,0.32849425,94851.0,94850.0,0.12432766]
[1740409072637,0.32839425,94851.0,94850.0,0.12432766]
[1740409073864,0.17025225,94851.0,94850.0,0.12432766]
[1740409074110,0.32839425,94851.0,94850.0,0.12432766]
[1740409074853,0.45919425,94851.0,94850.0,0.12432766]
[1740409075105,0.49589869,94851.0,94850.0,0.06488]
[1740409075344,0.45919425,94851.0,94850.0,0.06488]
[1740409075593,0.46249718,94851.0,94850.0,0.03185063]
[1740409076089,0.38149718,94851.0,94850.0,0.03185063]
[1740409076325,0.53169718,94851.0,94850.0,0.03185063]
[1740409076581,0.33169718,94851.0,94850.0,0.03185063]
[1740409076852,0.308156,94843.0,94842.0,3.71865135]
[1740409077093,0.3271215,94843.0,94842.0,3.71865135]
[1740409077351,0.3271215,94843.0,94842.0,3.80201928]
[1740409078041,0.1689655,94843.0,94842.0,3.80201928]
[1740409078471,0.3271215,94843.0,94842.0,3.80201928]
[1740409079379,0.4027215,94843.0,94842.0,3.80201928]
[1740409079607,0.3271215,94843.0,94842.0,3.80201928]
[1740409083005,0.3271215,94843.0,94842.0,3.80287008]
[1740409083202,0.1689655,94843.0,94842.0,3.80287008]
[1740409083421,0.3271215,94843.0,94842.0,3.80287008]
[1740409083627,0.1689655,94843.0,94842.0,3.80287008]
[1740409083836,0.3271215,94843.0,94842.0,3.80287008]
[1740409084050,0.1689655,94843.0,94842.0,3.80287008]
[1740409084259,0.3271215,94843.0,94842.0,3.80287008]
[1740409084477,0.1689655,94843.0,94842.0,0.08421873]
[1740409084663,0.3271215,94843.0,94842.0,0.08421873]
[1740409086014,0.1689655,94843.0,94842.0,0.08421873]
[1740409086234,0.3271215,94843.0,94842.0,0.08421873]
[1740409086441,0.36382594,94843.0,94842.0,0.08421873]
[1740409086821,0.68972594,94843.0,94842.0,0.08421873]
[1740409088156,0.70972594,94843.0,94842.0,0.08421873]
[1740409088362,0.75572594,94843.0,94842.0,0.08421873]
[1740409089202,0.95572594,94843.0,94842.0,0.08421873]
[1740409089607,0.93572594,94843.0,94842.0,0.08421873]
[1740409089764,0.95572594,94843.0,94842.0,0.08421873]
[1740409089995,0.95572594,94843.0,94842.0,0.02475587]
[1740409090198,0.8990215,94843.0,94842.0,0.02475587]
[1740409090403,0.6530215,94843.0,94842.0,0.02475587]
[1740409091040,0.68972594,94843.0,94842.0,0.02475587]
[1740409091862,0.6530215,94843.0,94842.0,0.02475587]
[1740409092488,0.68972594,94843.0,94842.0,0.02475587]
[1740409093102,0.6530215,94843.0,94842.0,0.02475587]
[1740409093735,0.4948655,94843.0,94842.0,0.02475587]
[1740409093934,0.1689655,94843.0,94842.0,0.02475587]
[1740409094138,0.3288231,94843.0,94842.0,0.02475587]
[1740409094343,0.0206671,94843.0,94842.0,0.02475587]
[1740409095178,0.11299324,94843.0,94842.0,0.02475587]
[1740409095601,0.26299324,94843.0,94842.0,0.02475587]
[1740409096659,0.11299324,94843.0,94842.0,0.02475587]
[1740409096871,0.27114924,94843.0,94842.0,0.02475587]
[1740409097081,0.26299324,94843.0,94842.0,0.02475587]
[1740409097301,0.42114924,94843.0,94842.0,0.02475587]
[1740409097511,0.45785368,94843.0,94842.0,0.02475587]
[1740409097709,0.74694924,94843.0,94842.0,0.02475587]
[1740409097917,0.88615368,94843.0,94842.0,0.02475587]
[1740409098130,0.90069453,94843.0,94842.0,0.02475587]
[1740409098554,0.86399009,94843.0,94842.0,0.02475587]
[1740409099168,0.88069453,94843.0,94842.0,0.02475587]
[1740409099418,1.04399009,94843.0,94842.0,0.02475587]
[1740409099635,1.04395009,94843.0,94842.0,0.02475587]
[1740409099835,0.95162395,94843.0,94842.0,0.02475587]
[1740409099984,0.98832839,94843.0,94842.0,0.02475587]
[1740409101207,0.86912395,94843.0,94842.0,0.02475587]
[1740409103202,0.86912395,94843.0,94842.0,0.02479587]
[1740409103629,0.92582839,94843.0,94842.0,0.02479587]
[1740409105235,0.158201,94816.0,94815.0,1.87342599]
[1740409105443,0.79296858,94816.0,94815.0,1.87342599]
[1740409105922,0.79296858,94816.0,94815.0,2.08987118]
[1740409106122,0.65442773,94816.0,94815.0,2.08987118]
[1740409106480,0.66896858,94816.0,94815.0,2.09030504]
[1740409107705,0.70567302,94816.0,94815.0,2.09030504]
[1740409108553,0.70567302,94816.0,94815.0,2.09021474]
[1740409110074,0.66896858,94816.0,94815.0,2.09021474]
[1740409112481,0.49622673,94816.0,94815.0,2.09021474]
[1740409112707,0.34622673,94816.0,94815.0,2.09021474]
[1740409112898,0.50442773,94816.0,94815.0,2.09021474]
[1740409113099,0.34622673,94816.0,94815.0,2.09021474]
[1740409113535,0.02032673,94816.0,94815.0,2.09021474]
[1740409113992,0.17852773,94816.0,94815.0,2.09021474]
[1740409114770,0.19306858,94816.0,94815.0,2.09021474]
[1740409115614,0.67081448,94816.0,94815.0,2.09021474]
[1740409115778,0.66896858,94816.0,94815.0,2.09021474]